bitfinex/quotes_SOLUSD_20220109
["timestamp","ask_amount","ask_price","bid_price","bid_amount"]
[1641749191588,56.70034745,143.92,143.82,1.737]
[1641749191791,56.70034745,143.92,143.83,10.4273]
[1641749191988,3.7009482,143.92,143.83,10.4273]
[1641749192789,3.7009482,143.92,143.84,0.25]
[1641749192990,1.9639482,143.92,143.86,10.4249]
[1641749193389,59.13818082,143.95,143.86,10.4249]
[1641749193590,48.71228082,143.95,143.86,10.4249]
[1641749194089,1.9639482,143.94,143.86,10.4249]
[1641749194323,1.9639482,143.94,143.87,1.737]
[1641749194715,48.71228082,143.95,143.87,1.737]
[1641749194915,24.54508082,143.95,143.86,10.4249]
[1641749195117,1.9639482,143.95,143.86,10.4249]
[1641749195317,1.9639482,143.94,143.86,10.4249]
[1641749195521,1.9639482,143.94,143.87,12.1615]
[1641749195720,1.9639482,143.94,143.87,10.4245]
[1641749195920,1.9639482,143.95,143.87,10.4245]
[1641749196121,1.9639482,143.95,143.87,14.1811945]
[1641749196320,1.9639482,143.95,143.88,1.737]
[1641749196924,1.9639482,143.95,143.9,10.4226]
[1641749197623,1.9639482,143.96,143.9,10.4226]
[1641749200947,1.9639482,143.96,143.89,10.4233]
[1641749202950,1.9639482,143.96,143.88,1.737]
[1641749203350,26.11046535,143.97,143.88,1.737]
[1641749203553,36.53506535,143.97,143.87,22.9503]
[1641749203852,1.737,143.96,143.83,1.737]
[1641749204052,29.6807637,143.94,143.82,32.9501]
[1641749204252,1.737,143.93,143.82,32.9501]
[1641749204853,1.737,143.93,143.84,21.8379689]
[1641749205054,29.6807637,143.94,143.84,23.5749689]
[1641749205254,1.9639482,143.92,143.84,23.5749689]
[1641749205661,1.9639482,143.92,143.85,10.4257]
[1641749206056,31.6447119,143.94,143.85,10.4257]
[1641749206555,1.9639482,143.93,143.85,10.4257]
[1641749206758,1.9639482,143.93,143.83,37.0834]
[1641749207755,12.3913482,143.93,143.83,37.0834]
[1641749207955,1.737,143.92,143.83,35.3464]
[1641749208157,31.6322424,143.91,143.83,35.3464]
[1641749209366,1.9639482,143.92,143.83,35.3464]
[1641749209761,12.3921482,143.92,143.83,35.3464]
[1641749209963,1.9639482,143.92,143.83,35.3464]
[1641749210559,1.9639482,143.92,143.83,36.92006848]
[1641749211760,24.89544768,143.92,143.83,36.92006848]
[1641749212366,1.9639482,143.92,143.83,36.92006848]
[1641749214462,1.9639482,143.92,143.84,0.26]
[1641749214662,1.9639482,143.92,143.88,10.4236]
[1641749215063,3.93236712,143.95,143.88,10.4236]
[1641749215064,1.9639482,143.94,143.88,10.4236]
[1641749215865,25.69369249,143.95,143.88,10.4236]
[1641749215866,27.65764069,143.95,143.88,10.4236]
[1641749217868,27.65764069,143.95,143.89,1.987]
[1641749217869,25.69369249,143.95,143.89,1.987]
[1641749218266,25.69369249,143.95,143.88,1.737]
[1641749218466,25.69369249,143.95,143.87,1.737]
[1641749218867,25.69369249,143.95,143.86,1.737]
[1641749219271,25.69369249,143.95,143.86,10.4253]
[1641749219666,27.65764069,143.95,143.86,10.4253]
[1641749220267,1.9639482,143.94,143.86,10.4253]
[1641749221568,1.9639482,143.95,143.86,10.4253]
[1641749221766,29.04373996,143.95,143.86,10.4253]
[1641749222167,1.9639482,143.95,143.86,13.75046493]
[1641749222367,1.9639482,143.95,143.89,10.423]
[1641749222970,1.737,144.0,143.89,10.423]
[1641749222971,1.9639482,143.96,143.89,10.423]
[1641749223169,1.9639482,143.96,143.9,24.5128]
[1641749223570,1.9639482,143.97,143.9,22.7758]
[1641749224572,1.9639482,143.97,143.92,10.421]
[1641749230575,1.9639482,143.99,143.92,10.421]
[1641749231181,29.7473962,143.98,143.92,10.421]
[1641749232578,31.7113444,143.98,143.92,10.421]
[1641749235681,1.9639482,143.98,143.92,10.421]
[1641749236583,1.9639482,143.98,143.92,20.451]
[1641749237380,23.34093471,143.99,143.92,20.451]
[1641749239088,1.9639482,144.0,143.92,20.451]
[1641749239308,1.9639482,144.0,143.92,43.8684]
[1641749240313,1.9639482,144.0,143.93,1.736]
[1641749240511,1.9639482,144.01,143.94,10.4196]
[1641749241416,1.9639482,144.01,143.92,35.1834]
[1641749241618,1.736,144.0,143.92,20.4506]
[1641749242015,25.27661126,143.99,143.92,20.4506]
[1641749242213,27.24055946,143.99,143.92,20.4506]
[1641749242616,27.24055946,143.99,143.92,10.03]
[1641749242915,1.9639482,143.98,143.92,10.03]
[1641749244317,1.9639482,143.97,143.92,10.03]
[1641749245616,1.9639482,143.97,143.92,20.4508]
[1641749246517,25.27661126,143.99,143.92,20.4508]
[1641749247920,25.27661126,143.99,143.93,1.736]
[1641749248120,25.27661126,143.99,143.94,10.4195]
[1641749248721,1.9639482,144.0,143.94,10.4195]
[1641749250926,1.9639482,143.99,143.94,10.4195]
[1641749251129,24.95987499,143.98,143.94,10.4195]
[1641749252229,24.95987499,143.98,143.93,1.736]
[1641749252528,24.95987499,143.98,143.92,11.766]
[1641749252729,24.95987499,143.98,143.92,10.03]
[1641749252932,1.9639482,143.97,143.92,10.03]
[1641749254030,26.92382319,143.98,143.92,10.03]
[1641749254232,26.92382319,143.98,143.89,1.736]
[1641749254431,1.736,143.97,143.89,1.736]
[1641749254634,3.51682586,143.97,143.85,1.85860296]
[1641749254832,10.429,143.91,143.85,1.85860296]
[1641749255232,27.67848829,143.9,143.85,1.85860296]
[1641749256432,27.67848829,143.9,143.83,1.737]
[1641749256732,10.4286,143.92,143.83,1.737]
[1641749258235,12.3925482,143.92,143.83,1.737]
[1641749258533,25.48246366,143.91,143.82,24.7844]
[1641749258734,35.91126366,143.91,143.82,24.7844]
[1641749259133,35.91126366,143.91,143.81,10.4289]
[1641749259434,35.91126366,143.91,143.8,97.6723]
[1641749260036,34.17426366,143.91,143.8,97.6723]
[1641749260240,36.13821186,143.91,143.8,97.6723]
[1641749260836,36.13821186,143.91,143.8,108.1018]
[1641749261038,34.17426366,143.91,143.8,108.1018]
[1641749263040,34.17426366,143.91,143.8,97.6723]
[1641749263239,1.737,143.9,143.8,95.9353]
[1641749263439,10.4312,143.88,143.8,95.9353]
[1641749263839,24.70071845,143.87,143.8,95.9353]
[1641749264642,24.70071845,143.87,143.8,72.9752]
[1641749264841,35.13281845,143.87,143.78,1.737]
[1641749266640,3.0,143.86,143.78,1.737]
[1641749267440,13.4325,143.86,143.78,1.737]
[1641749267644,1.738,143.85,143.75,10.4328]
[1641749268843,31.00289417,143.84,143.75,10.4328]
[1641749269040,31.00289417,143.84,143.76,1.738]
[1641749270943,10.4333,143.85,143.76,1.738]
[1641749271745,10.4333,143.85,143.76,12.1707]
[1641749272144,38.55328737,143.87,143.76,12.1707]
[1641749272344,36.81528737,143.87,143.77,23.2981]
[1641749274576,10.4321,143.87,143.77,33.7299]
[1641749274777,10.4321,143.87,143.78,1.738]
[1641749274978,3.0,143.86,143.78,1.988]
[1641749275379,10.4309,143.89,143.78,1.988]
[1641749275579,31.19078032,143.88,143.78,1.738]
[1641749275780,31.19078032,143.88,143.78,12.1692]
[1641749276780,41.62208032,143.88,143.78,1.738]
[1641749276980,1.738,143.87,143.77,23.2981]
[1641749278582,3.0,143.86,143.77,23.2981]
[1641749278781,3.0,143.86,143.77,33.3281]
[1641749278982,3.0,143.86,143.78,1.738]
[1641749279183,1.9639482,143.91,143.78,1.738]
[1641749279784,27.41197089,143.9,143.78,1.738]
[1641749279984,39.58027089,143.9,143.79,0.25]
[1641749280186,27.41197089,143.9,143.8,0.07]
[1641749280887,29.14897089,143.9,143.8,0.07]
[1641749281085,27.41197089,143.9,143.8,0.07]
[1641749281285,27.41197089,143.9,143.81,1.737]
[1641749282687,10.4288,143.92,143.82,0.25]
[1641749282887,10.4288,143.92,143.83,1.737]
[1641749283092,26.2470482,143.93,143.82,0.25]
[1641749283287,1.9639482,143.93,143.82,0.32]
[1641749284087,1.9639482,143.93,143.85,10.4261]
[1641749284287,1.9639482,143.93,143.8,59.2183]
[1641749284288,1.9639482,143.93,143.83,1.737]
[1641749285291,1.9639482,143.93,143.85,10.4261]
[1641749285694,31.33462409,143.94,143.83,1.737]
[1641749285891,41.36462409,143.94,143.83,1.737]
[1641749286495,3.7009482,143.93,143.83,1.737]
[1641749286692,3.7009482,143.93,143.81,24.6716]
[1641749286693,10.4294,143.91,143.81,24.6716]
[1641749286892,30.69559187,143.9,143.81,24.6716]
[1641749287395,30.69559187,143.9,143.82,10.4283]
[1641749289599,12.3923482,143.92,143.82,10.4283]
[1641749289898,1.9639482,143.92,143.82,36.3524]
[1641749290099,3.7009482,143.93,143.82,36.3524]
[1641749290300,3.0,143.92,143.82,36.3524]
[1641749290502,3.7009482,143.93,143.82,36.3524]
[1641749290803,35.57694647,143.92,143.82,36.3524]
[1641749291201,3.7009482,143.93,143.83,0.25]
[1641749291499,1.9639482,143.93,143.86,10.4252]
[1641749292100,1.9639482,143.93,143.87,1.737]
[1641749292302,1.9639482,143.95,143.87,1.987]
[1641749292599,1.9639482,143.95,143.91,10.4218]
[1641749292800,1.9639482,143.95,143.86,50.253]
[1641749293407,28.75682674,143.97,143.86,50.253]
[1641749293603,28.75682674,143.97,143.88,10.4239]
[1641749294003,3.0,143.96,143.88,10.4239]
[1641749297510,3.0,143.96,143.86,58.9419]
[1641749297711,4.737,143.96,143.86,58.9419]
[1641749298109,4.737,143.96,143.86,48.517]
[1641749298513,15.1625,143.96,143.85,1.737]
[1641749298711,16.94332586,143.96,143.84,79.0608]
[1641749299109,23.25194766,143.94,143.84,79.0608]
[1641749299339,1.737,143.93,143.84,79.0608]
[1641749299538,26.95289586,143.94,143.84,79.0608]
[1641749299939,26.95289586,143.94,143.8,1.737]
[1641749300144,26.95289586,143.94,143.81,0.25]
[1641749300639,3.0,143.93,143.81,0.25]
[1641749300847,3.0,143.93,143.81,24.4471]
[1641749301047,25.21589586,143.94,143.82,10.03]
[1641749301245,23.25194766,143.94,143.83,23.0207]
[1641749301446,23.25194766,143.94,143.83,23.2707]
[1641749302254,23.25194766,143.94,143.84,1.737]
[1641749302552,23.25194766,143.94,143.85,0.25]
[1641749302750,23.25194766,143.94,143.86,1.737]
[1641749302958,23.25194766,143.94,143.86,12.1624]
[1641749305255,23.25194766,143.94,143.86,10.4254]
[1641749305455,23.25194766,143.94,143.85,0.25]
[1641749305658,23.25194766,143.94,143.85,24.952]
[1641749305855,23.25194766,143.94,143.86,1.737]
[1641749306057,23.25194766,143.94,143.85,24.702]
[1641749307858,23.25194766,143.94,143.86,10.4254]
[1641749308060,23.25194766,143.94,143.86,12.1624]
[1641749308257,23.25194766,143.94,143.86,1.737]
[1641749308657,3.0,143.93,143.86,1.737]
[1641749308860,3.0,143.93,143.85,24.702]
[1641749312387,35.64289586,143.94,143.85,24.702]
[1641749313491,25.21589586,143.94,143.86,1.737]
[1641749313992,23.25194766,143.94,143.86,1.737]
[1641749314592,1.9639482,143.95,143.86,1.737]
[1641749314791,1.9639482,143.95,143.88,10.4236]
[1641749315390,1.9639482,143.96,143.88,10.4236]
[1641749315591,29.85129602,143.96,143.88,10.4236]
[1641749316192,29.85129602,143.96,143.86,12.1619]
[1641749316391,27.88734782,143.96,143.87,0.25]
[1641749316594,27.88734782,143.96,143.86,12.1619]
[1641749316991,29.85129602,143.96,143.86,1.737]
[1641749317191,1.737,143.95,143.85,49.5639]
[1641749317592,3.7009482,143.95,143.85,49.5639]
[1641749317791,5.48177406,143.95,143.85,49.5639]
[1641749318393,1.9639482,143.93,143.85,49.5639]
[1641749318795,10.4284,143.92,143.85,49.5639]
[1641749319397,1.9639482,143.93,143.85,49.5639]
[1641749319596,3.0,143.92,143.85,49.5639]
[1641749320099,3.0,143.92,143.86,1.737]
[1641749320497,1.9639482,143.93,143.86,1.737]
[1641749321300,1.9639482,143.95,143.86,1.737]
[1641749321501,1.9639482,143.95,143.86,10.4251]
[1641749322104,1.9639482,143.94,143.86,10.4251]
[1641749324905,1.9639482,143.94,143.86,12.1621]
[1641749325406,1.9639482,143.94,143.86,1.737]
[1641749325605,3.0,143.93,143.86,1.737]
[1641749325806,4.737,143.93,143.86,1.737]
[1641749326107,3.0,143.93,143.86,1.737]
[1641749326505,1.9639482,143.92,143.84,1.737]
[1641749326706,1.9639482,143.92,143.83,12.1639]
[1641749328005,1.9639482,143.92,143.83,10.4269]
[1641749330140,3.7009482,143.93,143.84,24.0531]
[1641749330339,1.9639482,143.93,143.85,10.4259]
[1641749331543,3.0,143.92,143.85,10.4259]
[1641749332743,3.0,143.92,143.86,12.1622]
[1641749332945,1.9639482,143.94,143.86,12.1622]
[1641749333745,25.2118482,143.95,143.86,12.1622]
[1641749333949,25.2118482,143.95,143.86,1.737]
[1641749334246,35.2418482,143.95,143.86,1.737]
[1641749334447,1.737,143.94,143.83,1.85860296]
[1641749334650,1.9639482,143.93,143.82,1.85860296]
[1641749334846,1.737,143.92,143.82,1.85860296]
[1641749335048,12.3931482,143.93,143.82,1.85860296]
[1641749335247,25.40983504,143.9,143.82,1.85860296]
[1641749335647,3.0,143.89,143.8,26.24810296]
[1641749335849,3.0,143.89,143.8,1.85860296]
[1641749336047,1.737,143.88,143.8,1.85860296]
[1641749336450,3.7009482,143.88,143.78,77.9803]
[1641749336649,3.7009482,143.88,143.77,27.61250296]
[1641749337348,14.1337482,143.88,143.77,27.61250296]
[1641749337551,12.1698,143.88,143.77,25.7539]
[1641749339749,14.1337482,143.88,143.77,25.7539]
[1641749340153,3.7009482,143.88,143.77,36.1857]
[1641749340354,1.9639482,143.88,143.77,25.7539]
[1641749340751,11.768,143.89,143.77,25.7539]
[1641749341154,11.768,143.89,143.78,0.25]
[1641749341351,10.03,143.89,143.77,98.8261]
[1641749341552,1.738,143.88,143.77,98.8261]
[1641749341752,11.768,143.89,143.77,98.8261]
[1641749341953,11.768,143.89,143.78,10.4308]
[1641749342151,10.03,143.89,143.78,10.4308]
[1641749343051,3.0,143.88,143.78,10.4308]
[1641749343252,3.0,143.88,143.79,1.738]
[1641749343451,3.0,143.88,143.79,25.0876]
[1641749344153,1.738,143.87,143.79,23.3496]
[1641749344552,1.738,143.87,143.77,73.0722]
[1641749344751,1.738,143.87,143.76,28.19650296]
[1641749344752,1.738,143.87,143.76,1.85860296]
[1641749344952,23.98242586,143.87,143.74,1.85860296]
[1641749345754,47.25912586,143.87,143.74,1.85860296]
[1641749346253,49.22307406,143.87,143.73,1.738]
[1641749346858,1.9639482,143.86,143.73,1.738]
[1641749347055,10.4361,143.84,143.73,1.738]
[1641749347254,23.74506287,143.83,143.73,1.738]
[1641749347654,23.74506287,143.83,143.73,1.238]
[1641749347862,1.738,143.85,143.74,4.24215713]
[1641749348086,11.9939482,143.88,143.75,24.1616]
[1641749348255,1.9639482,143.88,143.75,46.68688842]
[1641749348455,1.9639482,143.88,143.76,0.25]
[1641749348657,3.0,143.87,143.77,1.738]
[1641749349058,3.0,143.86,143.77,1.738]
[1641749349258,1.738,143.88,143.77,1.738]
[1641749349459,10.4342,143.87,143.77,1.738]
[1641749349659,4.738,143.88,143.77,1.738]
[1641749349858,4.738,143.88,143.76,78.9495]
[1641749349859,40.21120011,143.87,143.76,78.9495]
[1641749350159,1.738,143.86,143.76,77.2115]
[1641749350959,10.03,143.85,143.75,1.738]
[1641749351160,1.738,143.84,143.75,1.738]
[1641749351360,11.768,143.84,143.73,1.85860296]
[1641749351559,11.768,143.84,143.69,24.9898]
[1641749351560,13.54882586,143.84,143.71,1.85860296]
[1641749352059,1.78082586,143.83,143.71,1.85860296]
[1641749352260,33.08153444,143.81,143.71,1.85860296]
[1641749352460,22.64323444,143.81,143.69,24.9898]
[1641749353459,33.08143444,143.81,143.69,24.9898]
[1641749353659,10.03,143.8,143.69,24.9898]
[1641749353858,1.739,143.79,143.69,23.2518]
[1641749354364,10.4423,143.75,143.68,75.9353]
[1641749354561,10.4423,143.75,143.68,74.1963]
[1641749354562,27.35301845,143.74,143.68,74.1963]
[1641749355862,27.35301845,143.74,143.66,1.739]
[1641749356069,37.38301845,143.74,143.66,1.739]
[1641749356261,1.739,143.73,143.66,1.739]
[1641749356462,11.769,143.73,143.66,1.739]
[1641749356965,10.4458,143.7,143.66,1.739]
[1641749357562,10.03,143.71,143.6,1.739]
[1641749357963,3.0,143.7,143.6,12.1831]
[1641749358567,3.0,143.7,143.6,1.739]
[1641749359267,3.0,143.7,143.6,12.1833]
[1641749359466,3.0,143.7,143.6,1.739]
[1641749359666,10.03,143.71,143.6,1.739]
[1641749359966,1.74,143.7,143.57,1.74]
[1641749360771,1.74,143.7,143.57,124.9099]
[1641749360969,10.03,143.69,143.57,123.1699]
[1641749361170,29.13263174,143.68,143.57,123.1699]
[1641749361569,27.39263174,143.68,143.57,133.6163]
[1641749361771,27.39263174,143.68,143.58,3.52082586]
[1641749361973,27.39263174,143.68,143.59,2.46789172]
[1641749362175,10.03,143.73,143.6,1.24]
[1641749362376,10.03,143.73,143.61,0.25]
[1641749362575,10.03,143.73,143.62,12.1825]
[1641749362875,1.74,143.76,143.63,0.25]
[1641749363096,25.35251984,143.75,143.64,1.739]
[1641749363496,10.03,143.77,143.68,10.4381]
[1641749363697,10.03,143.8,143.69,1.739]
[1641749363896,10.03,143.8,143.66,22.8267]
[1641749363897,10.03,143.82,143.7,0.25]
[1641749364296,10.03,143.82,143.71,1.739]
[1641749364496,10.03,143.82,143.72,6.84955139]
[1641749364696,10.03,143.82,143.75,10.4332]
[1641749365098,10.03,143.86,143.75,10.4332]
[1641749365295,10.03,143.86,143.76,1.988]
[1641749365496,10.03,143.86,143.76,1.738]
[1641749365796,10.03,143.86,143.76,3.51882586]
[1641749365999,3.0,143.85,143.76,3.51882586]
[1641749366196,25.79344485,143.87,143.76,3.51882586]
[1641749366498,25.79344485,143.87,143.77,3.0]
[1641749366795,25.79344485,143.87,143.77,13.4314]
[1641749367498,3.0,143.86,143.77,13.4314]
[1641749367799,3.0,143.86,143.78,1.738]
[1641749373505,3.0,143.86,143.77,12.1694]
[1641749373707,3.0,143.86,143.76,1.738]
[1641749373906,3.0,143.86,143.76,0.25]
[1641749375106,3.0,143.86,143.76,10.6825]
[1641749377508,3.0,143.86,143.76,0.25]
[1641749378109,3.0,143.86,143.75,25.3521]
[1641749378308,1.738,143.85,143.75,23.6141]
[1641749379609,11.768,143.86,143.75,23.6141]
[1641749379812,22.2023,143.86,143.75,23.6141]
[1641749380510,3.0,143.85,143.75,23.6141]
[1641749380711,3.0,143.85,143.76,1.738]
[1641749382010,4.738,143.85,143.75,23.6141]
[1641749383209,15.1729,143.85,143.75,23.6141]
[1641749384412,15.1729,143.85,143.74,100.018]
[1641749385010,20.4657,143.84,143.74,100.018]
[1641749386712,1.738,143.83,143.74,100.018]
[1641749387614,1.738,143.83,143.74,110.4521]
[1641749387813,1.738,143.83,143.74,100.018]
[1641749388014,10.03,143.84,143.74,100.018]
[1641749388215,10.03,143.84,143.75,1.738]
[1641749388413,20.4656,143.84,143.75,1.738]
[1641749388614,4.738,143.83,143.71,1.738]
[1641749389018,10.03,143.82,143.71,1.738]
[1641749389616,24.3797561,143.81,143.71,1.738]
[1641749392621,24.3797561,143.81,143.72,0.25]
[1641749392820,24.3797561,143.81,143.73,1.738]
[1641749393024,3.0,143.8,143.73,1.738]
[1641749393822,3.0,143.8,143.73,12.1728]
[1641749394624,3.0,143.8,143.71,3.59660296]
[1641749395325,3.0,143.8,143.71,1.738]
[1641749397057,4.739,143.8,143.7,47.553]
[1641749397855,4.739,143.8,143.7,57.9894]
[1641749398556,3.0,143.8,143.7,57.9894]
[1641749399565,3.0,143.8,143.71,1.739]
[1641749399960,3.0,143.8,143.71,12.1748]
[1641749401758,10.03,143.82,143.72,10.4352]
[1641749401957,10.5693,143.83,143.72,10.4352]
[1641749402158,1.9639482,143.84,143.73,24.8958]
[1641749402560,1.9639482,143.84,143.74,4.65990373]
[1641749402959,31.02073128,143.85,143.74,4.65990373]
[1641749403161,31.02073128,143.85,143.75,1.988]
[1641749403660,31.02073128,143.85,143.75,26.1271]
[1641749404562,3.0,143.84,143.75,26.1271]
[1641749404763,3.0,143.84,143.78,10.4309]
[1641749404966,12.1951482,143.87,143.78,10.4309]
[1641749405364,3.0,143.86,143.78,10.4309]
[1641749406764,1.9639482,143.87,143.78,10.4309]
[1641749406966,1.9639482,143.87,143.83,10.4272]
[1641749407463,1.9639482,143.9,143.83,10.4272]
[1641749408366,1.9639482,143.91,143.83,10.4272]
[1641749408565,1.9639482,143.91,143.86,10.4251]
[1641749409265,1.9639482,143.93,143.86,10.4251]
[1641749409966,1.9639482,143.93,143.84,35.3849]
[1641749411372,1.9639482,143.93,143.82,12.1647]
[1641749411568,1.737,143.92,143.82,1.737]
[1641749411968,3.51782586,143.92,143.82,1.737]
[1641749412368,1.78082586,143.91,143.82,1.737]
[1641749412571,1.737,143.9,143.78,1.737]
[1641749412768,12.1679,143.9,143.78,114.8733]
[1641749412973,3.0,143.89,143.78,104.4426]
[1641749413167,1.738,143.88,143.78,102.7056]
[1641749413367,1.738,143.88,143.78,23.9533]
[1641749413567,10.03,143.87,143.75,23.4924]
[1641749413771,1.738,143.86,143.75,23.4924]
[1641749413967,1.738,143.86,143.74,1.738]
[1641749414171,34.37832472,143.85,143.73,22.8477]
[1641749414378,1.738,143.84,143.72,80.99680296]
[1641749414569,1.738,143.84,143.7,28.53650296]
[1641749414770,10.03,143.83,143.7,3.59660296]
[1641749414971,10.4384,143.79,143.7,1.85860296]
[1641749415168,10.4384,143.79,143.7,3.59760296]
[1641749415369,22.67351497,143.78,143.7,3.59760296]
[1641749415601,22.67351497,143.78,143.69,26.7254]
[1641749415769,1.739,143.77,143.66,75.37870296]
[1641749416369,1.739,143.77,143.66,73.5201]
[1641749416570,10.4414,143.75,143.66,73.5201]
[1641749417473,12.1795,143.77,143.66,73.5201]
[1641749417672,10.4405,143.77,143.66,73.5201]
[1641749418474,10.4405,143.77,143.67,0.25]
[1641749418674,10.4405,143.77,143.67,10.6891]
[1641749418875,12.1779,143.79,143.67,10.6891]
[1641749419074,10.03,143.8,143.67,10.6891]
[1641749419075,10.03,143.8,143.68,24.5329]
[1641749419278,36.4415,143.83,143.69,1.739]
[1641749419479,34.7025,143.83,143.69,1.989]
[1641749419878,27.10500936,143.82,143.7,6.96044283]
[1641749420081,37.54140936,143.82,143.71,36.4704]
[1641749420281,3.0,143.81,143.71,36.7204]
[1641749420478,3.0,143.81,143.71,36.4704]
[1641749420878,3.0,143.81,143.72,0.25]
[1641749421079,3.0,143.81,143.73,1.738]
[1641749421680,11.769,143.85,143.74,0.25]
[1641749421884,116.95908688,143.86,143.74,0.25]
[1641749422083,115.22108688,143.86,143.75,10.03]
[1641749422483,115.22108688,143.86,143.76,0.25]
[1641749422684,25.60379908,143.85,143.77,1.738]
[1641749422882,25.60379908,143.85,143.78,0.25]
[1641749423810,25.60379908,143.85,143.8,10.4298]
[1641749424208,12.3949482,143.9,143.8,10.4298]
[1641749425307,24.1174184,143.89,143.8,10.4298]
[1641749426011,24.1174184,143.89,143.81,10.6784]
[1641749426209,1.9639482,143.91,143.81,10.6784]
[1641749426609,1.9639482,143.92,143.81,10.6784]
[1641749427309,27.20133698,143.91,143.81,10.6784]
[1641749427510,27.20133698,143.91,143.81,35.6588]
[1641749427909,27.20133698,143.91,143.81,35.4088]
[1641749428513,3.0,143.9,143.81,35.4088]
[1641749428712,3.0,143.9,143.81,24.9804]
[1641749429111,1.737,143.89,143.77,10.03]
[1641749429512,1.737,143.89,143.78,0.25]
[1641749429913,12.1683,143.89,143.78,34.1607]
[1641749430313,12.1683,143.89,143.78,23.7295]
[1641749430511,12.1683,143.89,143.78,23.4795]
[1641749430720,1.78082586,143.88,143.74,99.9]
[1641749430920,10.435,143.84,143.74,99.9]
[1641749431125,1.738,143.83,143.74,99.9]
[1641749431323,10.435,143.84,143.74,99.9]
[1641749431521,25.97849811,143.85,143.74,124.42733746]
[1641749432124,36.41259811,143.85,143.74,134.86133746]
[1641749432323,36.41259811,143.85,143.74,110.334]
[1641749432924,1.738,143.84,143.74,99.9]
[1641749433130,10.4365,143.82,143.74,99.9]
[1641749433325,10.4365,143.82,143.73,23.9609]
[1641749435827,13.4372,143.81,143.73,23.9609]
[1641749438834,13.4372,143.81,143.7,1.738]
[1641749439632,10.4396,143.78,143.7,1.738]
[1641749439832,10.4396,143.78,143.69,97.4154]
[1641749440032,10.4396,143.78,143.67,0.739]
[1641749440234,10.4396,143.78,143.66,153.38492586]
[1641749440235,12.1786,143.78,143.66,153.38492586]
[1641749441036,12.1786,143.78,143.67,0.25]
[1641749442065,12.1786,143.78,143.66,241.82172586]
[1641749442864,12.1786,143.78,143.67,23.7789]
[1641749443163,10.4396,143.78,143.67,23.7789]
[1641749443365,10.4396,143.78,143.67,34.218]
[1641749443565,3.0,143.77,143.67,34.218]
[1641749444366,10.4397,143.77,143.67,23.7789]
[1641749444571,1.739,143.76,143.65,10.03]
[1641749444765,1.739,143.76,143.64,27.41020296]
[1641749444766,11.769,143.76,143.64,27.41020296]
[1641749444965,11.769,143.76,143.64,25.67120296]
[1641749445573,11.769,143.76,143.64,23.8126]
[1641749445768,46.5795,143.76,143.63,1.739]
[1641749445968,13.54982586,143.76,143.62,98.8156]
[1641749446470,11.769,143.76,143.62,98.8156]
[1641749447068,27.18122173,143.73,143.62,98.8156]
[1641749447769,27.18122173,143.73,143.63,0.25]
[1641749448171,37.62442173,143.73,143.63,0.25]
[1641749448470,37.62442173,143.73,143.62,109.2577]
[1641749449073,27.18122173,143.73,143.62,98.8156]
[1641749449674,28.92122173,143.73,143.62,98.8156]
[1641749450475,1.74,143.73,143.62,98.8156]
[1641749450874,10.03,143.74,143.63,1.99]
[1641749451277,10.03,143.74,143.63,1.74]
[1641749451474,29.69455701,143.73,143.63,1.74]
[1641749452774,10.4443,143.71,143.62,98.8156]